fUSD/lending_fUSD_20250629
["ID","MTS","AMOUNT","RATE_DAILY","PERIOD"]
[368489422,1751190723535,-1167.05,0.00029589,3]
[368489423,1751190723546,-899.19,0.00029589,3]
[368489424,1751190723556,-935.31,0.00029589,3]
[368489425,1751190723566,-771.06,0.00029589,3]
[368489426,1751190723577,-610.33,0.00029589,3]
[368489427,1751190723587,-490.0,0.00029589,3]
[368489428,1751190723598,-715.86,0.00029589,3]
[368489429,1751190723608,-1503.84,0.00029589,3]
[368489430,1751190723619,-1626.28,0.00029589,3]
[368489431,1751190723629,-566.4,0.00029589,3]
[368489432,1751190723639,-490.0,0.00029589,3]
[368489433,1751190723648,-934.93,0.00029589,3]
[368489434,1751190723659,-516.29,0.00029589,3]
[368489435,1751190723668,-589.35,0.00029589,3]
[368489436,1751190723679,-2211.02,0.00029589,3]
[368489437,1751190723689,-1313.26,0.00029589,3]
[368489438,1751190723701,-878.98,0.00029589,3]
[368489439,1751190723711,-2018.3,0.00029589,3]
[368489440,1751190723722,-601.87467995,0.00029589,3]
[368489441,1751190723733,-221.21047739,0.00029589,3]
[368489442,1751190723743,-1320.46,0.00029589,3]
[368489443,1751190723754,-466.04782817,0.00029589,3]
[368489444,1751190723764,-1272.1,0.00029589,3]
[368489445,1751190723775,-2254.95,0.00029589,3]
[368489446,1751190723785,-490.0,0.00029589,3]
[368489447,1751190723795,-490.0,0.00029589,3]
[368489448,1751190723805,-801.49,0.00029589,3]
[368489449,1751190723815,-793.92,0.00029589,3]
[368489450,1751190723826,-1409.04,0.00029589,3]
[368489451,1751190723837,-566.98,0.00029589,3]
[368489452,1751190723847,-855.39,0.00029589,3]
[368489453,1751190723858,-520.23,0.00029589,3]
[368489454,1751190723869,-503.31,0.00029589,3]
[368489455,1751190723879,-1383.19,0.00029589,3]
[368489456,1751190723889,-490.0,0.00029589,3]
[368489457,1751190723899,-161.58874063,0.00029589,3]
[368489458,1751190723910,-490.0,0.00029589,3]
[368489459,1751190723921,-490.0,0.00029589,3]
[368489460,1751190723933,-907.17,0.00029589,3]
[368489461,1751190723943,-1733.55,0.00029589,3]
[368489462,1751190723953,-1411.93,0.00029589,3]
[368489463,1751190723964,-490.0,0.00029589,3]
[368489464,1751190723975,-539.43702374,0.00029589,3]
[368489465,1751190723985,-490.0,0.00029589,3]
[368489466,1751190723995,-1161.29,0.00029589,3]
[368489467,1751190724005,-490.0,0.00029589,3]
[368489468,1751190724016,-490.0,0.00029589,3]
[368489469,1751190724027,-648.19,0.00029589,3]
[368489470,1751190724038,-490.0,0.00029589,3]
[368489471,1751190724048,-664.2,0.00029589,3]
[368489472,1751190724057,-492.59,0.00029589,3]
[368489473,1751190724068,-1411.98,0.00029589,3]
[368489474,1751190724078,-490.0,0.00029589,3]
[368489475,1751190724089,-1476.05,0.00029589,3]
[368489476,1751190724099,-490.0,0.00029589,3]
[368489477,1751190724111,-490.0,0.00029589,3]
[368489478,1751190724122,-490.0,0.00029589,3]
[368489479,1751190724132,-490.0,0.00029589,3]
[368489480,1751190724144,-2483.68,0.00029589,3]
[368489481,1751190724154,-1539.15,0.00029589,3]
[368489482,1751190724166,-622.78,0.00029589,3]
[368489483,1751190724404,-2320.44,0.00029589,3]
[368489484,1751190724417,-490.0,0.00029589,3]
[368489485,1751190724426,-894.95,0.00029589,3]
[368489486,1751190724436,-701.41,0.00029589,3]
[368489487,1751190724445,-526.1,0.00029589,3]
[368489488,1751190724457,-1005.08,0.00029589,3]
[368489489,1751190724467,-490.0,0.00029589,3]
[368489490,1751190724476,-249.05825955,0.00029589,3]
[368489491,1751190724487,-1032.78,0.00029589,3]
[368489492,1751190724496,-1199.97,0.00029589,3]
[368489493,1751190724505,-1283.76,0.00029589,3]
[368489494,1751190724515,-549.61,0.00029589,3]
[368489495,1751190724524,-490.0,0.00029589,3]
[368489496,1751190724533,-490.0,0.00029589,3]
[368489497,1751190724542,-901.15,0.00029589,3]
[368489498,1751190724552,-545.6,0.00029589,3]
[368489499,1751190724562,-841.45,0.00029589,3]
[368489500,1751190724571,-525.0,0.00029589,3]
[368489501,1751190724580,-908.9,0.00029589,3]
[368489502,1751190724589,-1956.7,0.00029589,3]
[368489503,1751190724599,-490.0,0.00029589,3]
[368489504,1751190724608,-1559.17,0.00029589,3]
[368489505,1751190724617,-490.0,0.00029589,3]
[368489506,1751190724628,-772.36,0.00029589,3]
[368489507,1751190724637,-1731.31,0.00029589,3]
[368489508,1751190724647,-490.0,0.00029589,3]
[368489509,1751190724656,-490.0,0.00029589,3]
[368489510,1751190724666,-1241.41,0.00029589,3]
[368489511,1751190724675,-490.0,0.00029589,3]
[368489512,1751190724685,-2257.75,0.00029589,3]
[368489513,1751190724695,-1736.54,0.00029589,3]
[368489514,1751190724705,-613.43,0.00029589,3]
[368489515,1751190724715,-2325.03,0.00029589,3]
[368489516,1751190724726,-1117.78,0.00029589,3]
[368489517,1751190724736,-1022.6,0.00029589,3]
[368489518,1751190724745,-896.69,0.00029589,3]
[368489519,1751190724755,-998.0,0.00029589,3]
[368489520,1751190724765,-490.0,0.00029589,3]
[368489521,1751190724774,-263.18700089,0.00029589,3]
[368489522,1751190724784,-1382.19,0.00029589,3]
[368489523,1751190724794,-490.0,0.00029589,3]
[368489524,1751190724803,-1087.69,0.00029589,3]
[368489525,1751190724813,-937.32,0.00029589,3]
[368489526,1751190724822,-490.0,0.00029589,3]
[368489527,1751190724832,-490.0,0.00029589,3]
[368489528,1751190724841,-490.0,0.00029589,3]
[368489529,1751190724852,-490.0,0.00029589,3]
[368489530,1751190724862,-490.0,0.00029589,3]
[368489531,1751190724871,-2003.29,0.00029589,3]
[368489532,1751190724881,-1073.82,0.00029589,3]
[368489533,1751190724891,-1428.66,0.00029589,3]
[368489534,1751190724901,-490.0,0.00029589,3]
[368489535,1751190724910,-906.56,0.00029589,3]
[368489536,1751190724920,-490.0,0.00029589,3]
[368489537,1751190724929,-751.94,0.00029589,3]
[368489538,1751190724940,-1284.2,0.00029589,3]
[368489539,1751190724950,-995.73,0.00029589,3]
[368489540,1751190724960,-730.89,0.00029589,3]
[368489541,1751190724969,-490.0,0.00029589,3]
[368489542,1751190724980,-490.0,0.00029589,3]
[368489543,1751190724989,-490.0,0.00029589,3]
[368489544,1751190724999,-490.0,0.00029589,3]
[368489545,1751190725008,-490.0,0.00029589,3]
[368489546,1751190725018,-490.0,0.00029589,3]
[368489547,1751190725029,-490.0,0.00029589,3]
[368489548,1751190725038,-490.0,0.00029589,3]
[368489549,1751190725048,-3819.49,0.00029589,3]
[368489550,1751190725058,-614.58,0.00029589,3]
[368489551,1751190725067,-2099.43,0.00029589,3]
[368489552,1751190725077,-591.09,0.00029589,3]
[368489553,1751190725088,-490.0,0.00029589,3]
[368489554,1751190725099,-482.3162961,0.00029589,3]
[368489555,1751190725108,-490.0,0.00029589,3]
[368489556,1751190725118,-1763.09,0.00029589,3]
[368489557,1751190725127,-930.34,0.00029589,3]
[368489558,1751190725137,-1553.22,0.00029589,3]
[368489559,1751190725148,-587.32,0.00029589,3]
[368489560,1751190725158,-1288.37,0.00029589,3]
[368489561,1751190725167,-490.0,0.00029589,3]
[368489562,1751190725177,-4450.47,0.00029589,3]
[368489563,1751190725187,-935.65,0.00029589,3]
[368489564,1751190725196,-891.46,0.00029589,3]
[368489565,1751190725207,-490.0,0.00029589,3]
[368489566,1751190725217,-490.0,0.00029589,3]
[368489567,1751190725226,-854.31,0.00029589,3]
[368489568,1751190725236,-490.0,0.00029589,3]
[368489569,1751190725246,-528.19,0.00029589,3]
[368489570,1751190725256,-537.83917094,0.00029589,3]
[368489571,1751190725266,-959.78,0.00029589,3]
[368489572,1751190725275,-490.0,0.00029589,3]
[368489573,1751190725284,-490.0,0.00029589,3]
[368489574,1751190725294,-766.16,0.00029589,3]
[368489575,1751190725303,-1454.99,0.00029589,3]
[368489576,1751190725313,-1177.8,0.00029589,3]
[368489577,1751190725322,-513.5543278,0.00029589,3]
[368489578,1751190725331,-490.0,0.00029589,3]
[368489579,1751190725340,-1065.99,0.00029589,3]
[368489580,1751190725349,-490.0,0.00029589,3]
[368489581,1751190725358,-921.89,0.00029589,3]
[368489582,1751190725368,-1049.98,0.00029589,3]
[368489583,1751190725377,-490.0,0.00029589,3]
[368489584,1751190725387,-603.29,0.00029589,3]
[368489585,1751190725397,-490.0,0.00029589,3]
[368489586,1751190725407,-1101.22,0.00029589,3]
[368489587,1751190725418,-490.0,0.00029589,3]
[368489588,1751190725428,-555.36,0.00029589,3]
[368489589,1751190725437,-490.0,0.00029589,3]
[368489590,1751190725447,-1690.83,0.00029589,3]
[368489591,1751190725457,-494.25,0.00029589,3]
[368489592,1751190725467,-608.46,0.00029589,3]
[368489593,1751190725475,-916.39,0.00029589,3]
[368489594,1751190725486,-698.3,0.00029589,3]
[368489595,1751190725496,-573.71,0.00029589,3]
[368489596,1751190725505,-490.0,0.00029589,3]
[368489597,1751190725514,-1033.94,0.00029589,3]
[368489598,1751190725524,-1394.52,0.00029589,3]
[368489599,1751190725533,-841.15,0.00029589,3]
[368489600,1751190725543,-18048.03,0.00029589,3]
[368489601,1751190725553,-814.68,0.00029589,3]
[368489602,1751190725562,-994.63,0.00029589,3]
[368489603,1751190725572,-817.07,0.00029589,3]
[368489604,1751190725581,-490.0,0.00029589,3]
[368489605,1751190725590,-490.0,0.00029589,3]
[368489606,1751190725599,-490.0,0.00029589,3]
[368489607,1751190725608,-860.32,0.00029589,3]
[368489608,1751190725618,-1083.78,0.00029589,3]
[368489609,1751190725627,-895.73,0.00029589,3]
[368489610,1751190725637,-490.0,0.00029589,3]
[368489611,1751190725646,-1619.71,0.00029589,3]
[368489612,1751190725656,-2039.79,0.00029589,3]
[368489613,1751190725665,-490.0,0.00029589,3]
[368489614,1751190725675,-627.15,0.00029589,3]
[368489615,1751190725684,-490.0,0.00029589,3]
[368489616,1751190725693,-490.0,0.00029589,3]
[368489617,1751190725703,-1338.17,0.00029589,3]
[368489618,1751190725715,-522.56,0.00029589,3]
[368489619,1751190725724,-2735.95,0.00029589,3]
[368489620,1751190725734,-490.0,0.00029589,3]
[368489621,1751190725743,-490.0,0.00029589,3]
[368489622,1751190725753,-5045.19,0.00029589,3]
[368489623,1751190725763,-732.19,0.00029589,3]
[368489624,1751190725772,-490.0,0.00029589,3]
[368489625,1751190725782,-490.0,0.00029589,3]
[368489626,1751190725791,-2798.62,0.00029589,3]
[368489627,1751190725801,-490.0,0.00029589,3]
[368489628,1751190725810,-1159.62,0.00029589,3]
[368489629,1751190725820,-557.27,0.00029589,3]
[368489630,1751190725829,-490.0,0.00029589,3]
[368489631,1751190725839,-1735.18,0.00029589,3]
[368489632,1751190725849,-490.0,0.00029589,3]
[368489633,1751190725858,-490.0,0.00029589,3]
[368489634,1751190725867,-795.99,0.00029589,3]
[368489635,1751190725878,-490.0,0.00029589,3]
[368489636,1751190725887,-490.0,0.00029589,3]
[368489637,1751190725896,-2632.4,0.00029589,3]
[368489638,1751190725906,-2676.96,0.00029589,3]
[368489639,1751190725915,-890.5,0.00029589,3]
[368489640,1751190725925,-815.43,0.00029589,3]
[368489641,1751190725934,-490.0,0.00029589,3]
[368489642,1751190725943,-490.0,0.00029589,3]
[368489643,1751190725952,-2287.33,0.00029589,3]
[368489644,1751190725962,-490.0,0.00029589,3]
[368489645,1751190725972,-7199.68,0.00029589,3]
[368489646,1751190725981,-1083.86,0.00029589,3]
[368489647,1751190725992,-490.0,0.00029589,3]
[368489648,1751190726001,-1198.65,0.00029589,3]
[368489649,1751190726010,-564.45,0.00029589,3]
[368489650,1751190726020,-4926.93,0.00029589,3]
[368489651,1751190726030,-2111.85,0.00029589,3]
[368489652,1751190726040,-2504.77,0.00029589,3]
[368489653,1751190726050,-670.5,0.00029589,3]
[368489654,1751190726059,-9168.68,0.00029589,3]
[368489655,1751190726069,-1466.04,0.00029589,3]
[368489656,1751190726079,-995.99,0.00029589,3]
[368489657,1751190726088,-148479.19,0.00029589,3]
[368489658,1751190726098,-1110.23,0.00029589,3]
[368489659,1751190726107,-884.61,0.00029589,3]
[368489660,1751190726116,-3927.92,0.00029589,3]
[368489661,1751190726131,-1262.58,0.00029589,3]
[368489662,1751190726141,-490.0,0.00029589,3]
[368489663,1751190726151,-1550.57,0.00029589,3]
[368489664,1751190726161,-490.0,0.00029589,3]
[368489665,1751190726171,-4423.72,0.00029589,3]
[368489666,1751190726181,-799.02,0.00029589,3]
[368489667,1751190726190,-490.0,0.00029589,3]
[368489668,1751190726199,-2359.81,0.00029589,3]
[368489669,1751190726208,-1420.75,0.00029589,3]
[368489670,1751190726218,-490.0,0.00029589,3]
[368489671,1751190726228,-612.29,0.00029589,3]
[368489672,1751190726237,-363.84270597,0.00029589,3]
[368489673,1751190726245,-2220.09,0.00029589,3]
[368489674,1751190726254,-490.0,0.00029589,3]
[368489675,1751190726263,-490.0,0.00029589,3]
[368489676,1751190726272,-1116.8,0.00029589,3]
[368489677,1751190726281,-850.38,0.00029589,3]
[368489678,1751190726290,-1635.41,0.00029589,3]
[368489679,1751190726299,-495.37,0.00029589,3]
[368489680,1751190726308,-1906.36,0.00029589,3]
[368489681,1751190726317,-2198.76,0.00029589,3]
[368489682,1751190726326,-1730.15,0.00029589,3]
[368489683,1751190726335,-490.0,0.00029589,3]
[368489684,1751190726344,-490.0,0.00029589,3]
[368489685,1751190726353,-1477.82,0.00029589,3]
[368489686,1751190726363,-3000.74,0.00029589,3]
[368489687,1751190726371,-924.29,0.00029589,3]
[368489688,1751190726380,-590.95,0.00029589,3]
[368489689,1751190726390,-818.08,0.00029589,3]
[368489690,1751190726403,-1537.71,0.00029589,3]
[368489691,1751190726413,-1894.35,0.00029589,3]
[368489692,1751190726422,-1565.54,0.00029589,3]
[368489693,1751190726435,-490.0,0.00029589,3]
[368489694,1751190726444,-707.33,0.00029589,3]
[368489695,1751190726453,-490.0,0.00029589,3]
[368489696,1751190726462,-854.62,0.00029589,3]
[368489697,1751190726471,-2120.63,0.00029589,3]
[368489698,1751190726481,-1990.15,0.00029589,3]
[368489699,1751190726489,-490.0,0.00029589,3]
[368489700,1751190726498,-490.0,0.00029589,3]
[368489701,1751190726507,-334.72438562,0.00029589,3]
[368489702,1751190726516,-501.24,0.00029589,3]
[368489703,1751190726525,-1303.39,0.00029589,3]
[368489704,1751190726534,-490.0,0.00029589,3]
[368489705,1751190726543,-490.0,0.00029589,3]
[368489706,1751190726552,-490.0,0.00029589,3]
[368489707,1751190726561,-490.0,0.00029589,3]
[368489708,1751190726570,-2057.83,0.00029589,3]
[368489709,1751190726579,-1066.81,0.00029589,3]
[368489710,1751190726589,-1078.53,0.00029589,3]
[368489711,1751190726598,-829.05,0.00029589,3]
[368489712,1751190726607,-2549.31,0.00029589,3]
[368489713,1751190726616,-490.0,0.00029589,3]
[368489714,1751190726626,-1514.01,0.00029589,3]
[368489715,1751190726636,-490.0,0.00029589,3]
[368489716,1751190726647,-709.69,0.00029589,3]
[368489717,1751190726657,-490.0,0.00029589,3]
[368489718,1751190726667,-1413.24,0.00029589,3]
[368489719,1751190726677,-1126.76,0.00029589,3]
[368489720,1751190726687,-499.7,0.00029589,3]
[368489721,1751190726697,-490.0,0.00029589,3]
[368489722,1751190726707,-7138.85,0.00029589,3]
[368489723,1751190726718,-1903.95,0.00029589,3]
[368489724,1751190726728,-490.0,0.00029589,3]
[368489725,1751190726739,-1687.9,0.00029589,3]
[368489726,1751190726749,-1199.32,0.00029589,3]
[368489727,1751190726759,-605.34,0.00029589,3]
[368489728,1751190726768,-490.0,0.00029589,3]
[368489729,1751190726777,-624.57,0.00029589,3]
[368489730,1751190726787,-1080.18,0.00029589,3]
[368489731,1751190726796,-490.0,0.00029589,3]
[368489732,1751190726805,-1902.03,0.00029589,3]
[368489733,1751190726814,-490.0,0.00029589,3]
[368489734,1751190726823,-685.5,0.00029589,3]
[368489735,1751190726833,-985.04,0.00029589,3]
[368489736,1751190726842,-809.87,0.00029589,3]
[368489737,1751190726851,-2277.33,0.00029589,3]
[368489738,1751190726862,-3579.22,0.00029589,3]
[368489739,1751190726872,-490.0,0.00029589,3]
[368489740,1751190726881,-1369.16,0.00029589,3]
[368489741,1751190726891,-1202.94,0.00029589,3]
[368489742,1751190726900,-1406.03,0.00029589,3]
[368489743,1751190726910,-490.0,0.00029589,3]
[368489744,1751190726919,-2322.41,0.00029589,3]
[368489745,1751190726930,-892.36,0.00029589,3]
[368489746,1751190726940,-936.2,0.00029589,3]
[368489747,1751190726950,-11425.24,0.00029589,3]
[368489748,1751190726959,-437.70398644,0.00029589,3]
[368489749,1751190726970,-7389.77,0.00029589,3]
[368489750,1751190726979,-2363.6,0.00029589,3]
[368489751,1751190726989,-1344.12,0.00029589,3]
[368489752,1751190726999,-490.0,0.00029589,3]
[368489753,1751190727008,-490.0,0.00029589,3]
[368489754,1751190727018,-490.0,0.00029589,3]
[368489755,1751190727027,-1010.37,0.00029589,3]
[368489756,1751190727036,-3943.02,0.00029589,3]
[368489757,1751190727046,-719.55,0.00029589,3]
[368489758,1751190727055,-2127.37,0.00029589,3]
[368489759,1751190727064,-962.36,0.00029589,3]
[368489760,1751190727073,-490.0,0.00029589,3]
[368489761,1751190727082,-3378.38,0.00029589,3]
[368489762,1751190727092,-1167.04,0.00029589,3]
[368489763,1751190727101,-2325.84,0.00029589,3]
[368489764,1751190727111,-1319.73,0.00029589,3]
[368489765,1751190727121,-490.0,0.00029589,3]
[368489766,1751190727131,-509.95,0.00029589,3]
[368489767,1751190727140,-613.68,0.00029589,3]
[368489768,1751190727150,-2715.66,0.00029589,3]
[368489769,1751190727160,-490.0,0.00029589,3]
[368489770,1751190727169,-532.12,0.00029589,3]
[368489771,1751190727178,-490.0,0.00029589,3]
[368489772,1751190727187,-490.0,0.00029589,3]
[368489773,1751190727197,-1294.86,0.00029589,3]
[368489774,1751190727207,-1043.95,0.00029589,3]
[368489775,1751190727218,-1355.41,0.00029589,3]
[368489776,1751190727227,-2207.5,0.00029589,3]
[368489777,1751190727237,-4741.41,0.00029589,3]
[368489778,1751190727246,-545.36,0.00029589,3]
[368489779,1751190727255,-490.0,0.00029589,3]
[368489780,1751190727265,-1588.45,0.00029589,3]
[368489781,1751190727274,-490.0,0.00029589,3]
[368489782,1751190727284,-490.0,0.00029589,3]
[368489783,1751190727293,-826.61,0.00029589,3]
[368489784,1751190727303,-3228.0,0.00029589,3]
[368489785,1751190727312,-490.0,0.00029589,3]
[368489786,1751190727321,-886.06,0.00029589,3]
[368489787,1751190727331,-9205.97,0.00029589,3]
[368489788,1751190727340,-1424.96,0.00029589,3]
[368489789,1751190727350,-1170.72,0.00029589,3]
[368489790,1751190727360,-490.0,0.00029589,3]
[368489791,1751190727369,-2306.21,0.00029589,3]
[368489792,1751190727378,-3412.3,0.00029589,3]
[368489793,1751190727387,-728.26,0.00029589,3]
[368489794,1751190727396,-1625.19,0.00029589,3]
[368489795,1751190727405,-490.0,0.00029589,3]
[368489796,1751190727418,-1125.2,0.00029589,3]
[368489797,1751190727427,-1386.0,0.00029589,3]
[368489798,1751190727436,-736.63,0.00029589,3]
[368489799,1751190727446,-490.0,0.00029589,3]
[368489800,1751190727455,-1000.0,0.00029589,3]
[368489801,1751190727465,-1530.28,0.00029589,3]
[368489802,1751190727474,-1073.8,0.00029589,3]
[368489803,1751190727484,-2006.57,0.00029589,3]
[368489804,1751190727494,-490.0,0.00029589,3]
[368489805,1751190727504,-2091.51,0.00029589,3]
[368489806,1751190727513,-2126.77,0.00029589,3]
[368489807,1751190727523,-1779.52,0.00029589,3]
[368489808,1751190727531,-490.0,0.00029589,3]
[368489809,1751190727540,-490.0,0.00029589,3]
[368489810,1751190727549,-1673.45,0.00029589,3]
[368489811,1751190727558,-1303.39,0.00029589,3]
[368489812,1751190727568,-776.8,0.00029589,3]
[368489813,1751190727577,-2452.49,0.00029589,3]
[368489814,1751190727586,-4507.51,0.00029589,3]
[368489815,1751190727596,-2000.1,0.00029589,3]
[368489816,1751190727605,-490.0,0.00029589,3]
[368489817,1751190727614,-3480.9,0.00029589,3]
[368489818,1751190727624,-1935.08,0.00029589,3]
[368489819,1751190727633,-490.0,0.00029589,3]
[368489820,1751190727642,-1632.66,0.00029589,3]
[368489821,1751190727652,-1569.37,0.00029589,3]
[368489822,1751190727662,-2530.56,0.00029589,3]
[368489823,1751190727671,-490.0,0.00029589,3]
[368489824,1751190727680,-1489.85,0.00029589,3]
[368489825,1751190727689,-490.0,0.00029589,3]
[368489826,1751190727699,-490.0,0.00029589,3]
[368489827,1751190727708,-1193.32,0.00029589,3]
[368489828,1751190727718,-490.0,0.00029589,3]
[368489829,1751190727728,-2419.87,0.00029589,3]
[368489830,1751190727737,-588.25,0.00029589,3]
[368489831,1751190727747,-1993.35,0.00029589,3]
[368489832,1751190727756,-3522.67,0.00029589,3]
[368489833,1751190727984,-1690.76,0.00029589,3]
[368489834,1751190727994,-2018.73,0.00029589,3]
[368489835,1751190728003,-2243.02,0.00029589,3]
[368489836,1751190728012,-490.0,0.00029589,3]
[368489837,1751190728022,-2069.08,0.00029589,3]
[368489838,1751190728031,-490.0,0.00029589,3]
[368489839,1751190728041,-1621.16,0.00029589,3]
[368489840,1751190728051,-2803.72,0.00029589,3]
[368489841,1751190728060,-490.0,0.00029589,3]
[368489842,1751190728070,-490.0,0.00029589,3]
[368489843,1751190728080,-490.0,0.00029589,3]
[368489844,1751190728090,-490.0,0.00029589,3]
[368489845,1751190728099,-583.79986121,0.00029589,3]
[368489846,1751190728108,-490.0,0.00029589,3]
[368489847,1751190728119,-697.23,0.00029589,3]
[368489848,1751190728128,-1156.58,0.00029589,3]
[368489849,1751190728138,-490.0,0.00029589,3]
[368489850,1751190728148,-2344.83,0.00029589,3]
[368489851,1751190728157,-490.0,0.00029589,3]
[368489852,1751190728167,-896.46,0.00029589,3]
[368489853,1751190728176,-2317.49,0.00029589,3]
[368489854,1751190728186,-1697.89,0.00029589,3]
[368489855,1751190728195,-490.0,0.00029589,3]
[368489856,1751190728205,-490.0,0.00029589,3]
[368489857,1751190728215,-347.44156754,0.00029589,3]
[368489858,1751190728224,-1455.99,0.00029589,3]
[368489859,1751190728233,-2847.6,0.00029589,3]
[368489860,1751190728243,-490.0,0.00029589,3]
[368489861,1751190728252,-1196.0,0.00029589,3]
[368489862,1751190728262,-490.0,0.00029589,3]
[368489863,1751190728271,-4069.2,0.00029589,3]
[368489864,1751190728281,-1620.63,0.00029589,3]
[368489865,1751190728291,-24643.72,0.00029589,3]
[368489866,1751190728300,-498.07,0.00029589,3]
[368489867,1751190728310,-499.82,0.00029589,3]
[368489868,1751190728319,-3762.98,0.00029589,3]
[368489869,1751190728329,-1069.72,0.00029589,3]
[368489870,1751190728338,-725.1,0.00029589,3]
[368489871,1751190728347,-4782.64,0.00029589,3]
[368489872,1751190728357,-600.0,0.00029589,3]
[368489873,1751190728367,-1100.83,0.00029589,3]
[368489874,1751190728377,-1824.13,0.00029589,3]
[368489875,1751190728386,-600.0,0.00029589,3]
[368489876,1751190728396,-2504.1,0.00029589,3]
[368489877,1751190728406,-434.89,0.00029589,3]
[368489878,1751190728419,-509.90411002,0.00029589,3]
[368489879,1751190728428,-1607.63,0.00029589,3]
[368489880,1751190728437,-1132.25,0.00029589,3]
[368489881,1751190728447,-600.0,0.00029589,3]
[368489882,1751190728457,-11678.75,0.00029589,3]
[368489883,1751190728466,-3607.16,0.00029589,3]
[368489884,1751190728476,-490.0,0.00029589,3]
[368489885,1751190728486,-674.39,0.00029589,3]
[368489886,1751190728495,-600.0,0.00029589,3]
[368489887,1751190728505,-2388.21,0.00029589,3]
[368489888,1751190728515,-490.0,0.00029589,3]
[368489889,1751190728524,-600.0,0.00029589,3]
[368489890,1751190728533,-632.01,0.00029589,3]
[368489891,1751190728543,-434.89,0.00029589,3]
[368489892,1751190728553,-3749.55,0.00029589,3]
[368489893,1751190728563,-2478.96,0.00029589,3]
[368489894,1751190728572,-600.0,0.00029589,3]
[368489895,1751190728582,-536.71,0.00029589,3]
[368489896,1751190728591,-1798.53,0.00029589,3]
[368489897,1751190728601,-1629.68,0.00029589,3]
[368489898,1751190728611,-600.0,0.00029589,3]
[368489899,1751190728621,-3221.5,0.00029589,3]
[368489900,1751190728630,-490.0,0.00029589,3]
[368489901,1751190728640,-600.0,0.00029589,3]
[368489902,1751190728651,-434.89,0.00029589,3]
[368489903,1751190728661,-1535.71,0.00029589,3]
[368489904,1751190728670,-548.24,0.00029589,3]
[368489905,1751190728680,-600.0,0.00029589,3]
[368489906,1751190728689,-2263.99,0.00029589,3]
[368489907,1751190728699,-600.0,0.00029589,3]
[368489908,1751190728709,-1677.32,0.00029589,3]
[368489909,1751190728721,-6718.76,0.00029589,3]
[368489910,1751190728732,-1322.58,0.00029589,3]
[368489911,1751190728741,-600.0,0.00029589,3]
[368489912,1751190728751,-18559.3,0.00029589,3]
[368489913,1751190728761,-857.93,0.00029589,3]
[368489914,1751190728771,-434.89,0.00029589,3]
[368489915,1751190728781,-553.18,0.00029589,3]
[368489916,1751190728793,-490.0,0.00029589,3]
[368489917,1751190728805,-987.81,0.00029589,3]
[368489918,1751190728816,-490.0,0.00029589,3]
[368489919,1751190728828,-600.0,0.00029589,3]
[368489920,1751190728838,-2586.37,0.00029589,3]
[368489921,1751190728848,-1263.2,0.00029589,3]